bitfinex-derivatives/quotes_BTCF0:USTF0_20240815
["timestamp","ask_amount","ask_price","bid_price","bid_amount"]
[1723756549438,0.36097668,56906.0,56905.0,0.00016616]
[1723756549635,0.41307499,56927.0,56906.0,0.52716]
[1723756549933,0.3608,56915.0,56905.0,0.36192616]
[1723756550128,0.3608,56915.0,56905.0,0.40488716]
[1723756550323,0.404715,56914.0,56905.0,0.36096616]
[1723756550529,0.3608,56914.0,56905.0,0.89323017]
[1723756550838,0.3608,56914.0,56905.0,1.30723017]
[1723756551026,0.3608,56914.0,56905.0,0.38003017]
[1723756551333,0.00126343,56915.0,56912.0,0.043916]
[1723756551526,0.002,56914.0,56912.0,0.043916]
[1723756551829,0.3608,56927.0,56912.0,0.52712]
[1723756552034,0.3608,56927.0,56911.0,0.3608]
[1723756552232,0.3608,56927.0,56919.0,0.043911]
[1723756552635,0.36574802,56927.0,56919.0,0.043911]
[1723756553630,0.043906,56926.0,56919.0,0.043911]
[1723756553827,0.043907,56925.0,56918.0,0.3608]
[1723756554031,0.043907,56924.0,56918.0,0.3608]
[1723756554429,0.243907,56924.0,56919.0,0.006]
[1723756554625,0.3608,56921.0,56919.0,0.006]
[1723756554825,0.7208,56921.0,56917.0,4.3e-07]
[1723756555027,0.3608,56918.0,56917.0,4.3e-07]
[1723756555239,0.043919,56909.0,56887.0,0.3608]
[1723756555432,0.3608,56888.0,56880.0,0.2199]
[1723756556135,0.043941,56881.0,56879.0,0.3608]
[1723756556334,0.00016557,56880.0,56879.0,0.3608]
[1723756557440,0.043945,56875.0,56874.0,0.00026369]
[1723756558434,0.263945,56875.0,56874.0,0.00026369]
[1723756558742,0.044945,56875.0,56874.0,0.01226369]
[1723756558927,0.045945,56875.0,56874.0,0.01326369]
[1723756560442,0.04611057,56875.0,56874.0,0.00900069]
[1723756564548,0.40691057,56875.0,56874.0,0.00900069]
[1723756564746,1.29044557,56875.0,56869.0,0.00026369]
[1723756564938,0.448696,56870.0,56869.0,0.00026369]
[1723756565538,0.448696,56870.0,56851.0,0.404763]
[1723756565539,0.043957,56860.0,56851.0,0.404763]
[1723756565744,0.3608,56865.0,56851.0,0.404763]
[1723756565939,0.043957,56860.0,56851.0,0.3608]
[1723756566449,0.3608,56865.0,56859.0,0.52764]
[1723756566646,0.404749,56870.0,56864.0,0.3608]
[1723756566845,0.404749,56870.0,56858.0,0.36168]
[1723756566846,0.04395,56869.0,56860.0,0.043956]
[1723756567143,0.04421369,56868.0,56860.0,0.043956]
[1723756567646,0.001,56865.0,56860.0,0.043956]
[1723756567846,0.001,56865.0,56864.0,0.005]
[1723756568047,0.043951,56867.0,56864.0,0.005]
[1723756568641,0.00126369,56868.0,56863.0,0.043954]
[1723756569444,0.00126369,56868.0,56864.0,0.043953]
[1723756570240,0.001,56867.0,56865.0,0.043952]
[1723756570743,0.001,56867.0,56865.0,0.571512]
[1723756571038,0.00226369,56868.0,56864.0,0.005]
[1723756571240,0.043952,56866.0,56864.0,0.005]
[1723756571444,0.404752,56865.0,56864.0,0.005]
[1723756571656,0.658704,56865.0,56864.0,0.005]
[1723756571852,0.043959,56857.0,56856.0,0.00026369]
[1723756572243,0.043954,56864.0,56856.0,0.92790369]
[1723756572448,0.043954,56864.0,56860.0,0.3608]
[1723756572643,0.3608,56865.0,56856.0,0.00118369]
[1723756572949,0.043955,56861.0,56856.0,0.00026369]
[1723756573441,0.0058995,56867.0,56856.0,0.00026369]
[1723756573442,0.0058995,56867.0,56857.0,0.043958]
[1723756573642,0.043952,56865.0,56857.0,0.043958]
[1723756573843,0.0058995,56867.0,56857.0,0.043958]
[1723756574543,0.001,56865.0,56864.0,0.005]
[1723756574751,0.002,56865.0,56864.0,0.005]
[1723756575245,0.00534864,56868.0,56862.0,0.3608]
[1723756575446,0.002,56867.0,56862.0,0.3608]
[1723756575841,0.002,56867.0,56866.0,0.043952]
[1723756576239,0.001,56867.0,56866.0,0.971512]
[1723756576641,0.043933,56890.0,56867.0,0.52756]
[1723756576850,0.3608,56893.0,56876.0,0.043943]
[1723756577050,0.04394,56882.0,56877.0,0.043943]
[1723756577261,0.00512967,56886.0,56875.0,0.3608]
[1723756577950,0.404739,56883.0,56877.0,0.043943]
[1723756578546,0.043939,56883.0,56877.0,0.043943]
[1723756579360,0.00026369,56885.0,56875.0,0.3608]
[1723756579547,0.00026369,56885.0,56880.0,0.043941]
[1723756579853,0.00026369,56885.0,56884.0,0.043938]
[1723756580052,0.043928,56896.0,56891.0,0.043932]
[1723756580551,0.043928,56896.0,56889.0,0.3608]
[1723756580552,0.00494724,56901.0,56889.0,0.3608]
[1723756580750,0.3608,56900.0,56885.0,0.043936]
[1723756580944,0.3608,56900.0,56887.0,0.3608]
[1723756581142,0.3608,56893.0,56887.0,0.3608]
[1723756581345,0.256,56912.0,56887.0,0.00026369]
[1723756581346,0.3608,56888.0,56887.0,0.00026369]
[1723756581552,0.043934,56889.0,56887.0,0.00026369]
[1723756582751,0.049935,56888.0,56887.0,0.00026369]
[1723756583652,0.052935,56888.0,56887.0,0.00026369]
[1723756585146,0.003,56888.0,56887.0,0.00026369]
[1723756585352,0.003,56888.0,56887.0,0.97155869]
[1723756585650,0.046935,56888.0,56887.0,0.00026369]
[1723756586052,0.05192142,56888.0,56887.0,0.00026369]
[1723756586551,0.052935,56888.0,56887.0,0.00026369]
[1723756587053,0.052935,56888.0,56887.0,0.05271918]
[1723756587245,0.052935,56888.0,56887.0,0.00026369]
[1723756587452,0.052935,56888.0,56887.0,0.05271918]
[1723756587755,0.052935,56888.0,56887.0,0.00026369]
[1723756588951,0.009,56888.0,56887.0,0.00026369]
[1723756589364,0.052935,56888.0,56887.0,0.00026369]
[1723756590558,0.05792693,56888.0,56887.0,0.00026369]
[1723756591159,1.04922193,56888.0,56887.0,0.00026369]
[1723756591355,1.04922193,56888.0,56880.0,0.3608]
[1723756591356,0.043937,56885.0,56882.0,0.00465596]
[1723756591655,0.043945,56874.0,56873.0,0.00088]
[1723756591861,0.043945,56874.0,56871.0,0.2547]
[1723756592085,0.3608,56886.0,56871.0,0.2547]
[1723756592086,0.043947,56872.0,56871.0,0.2547]
[1723756592249,0.3608,56877.0,56866.0,0.3608]
[1723756592451,0.043951,56867.0,56866.0,0.36106369]
[1723756595061,0.615462,56867.0,56866.0,0.36106369]
[1723756595261,0.288902,56867.0,56866.0,0.36606369]
[1723756595460,0.29294934,56867.0,56866.0,0.36606369]
[1723756595660,0.24899834,56867.0,56866.0,0.36606369]
[1723756596060,0.24999834,56867.0,56866.0,0.36606369]
[1723756599555,0.04999834,56867.0,56866.0,0.36606369]
[1723756602365,0.002,56867.0,56866.0,0.00526369]
[1723756602674,0.043951,56867.0,56866.0,0.00526369]
[1723756605174,0.5708,56867.0,56855.0,0.06996702]
[1723756605373,0.7216,56856.0,56849.0,0.00018587]
[1723756605678,0.3608,56851.0,56849.0,0.00018587]
[1723756606174,0.2564357,56851.0,56849.0,0.00018587]
[1723756606371,0.00210369,56856.0,56855.0,0.001]
[1723756606570,0.001,56867.0,56855.0,0.88944]
[1723756606868,0.043952,56866.0,56856.0,0.0699345]
[1723756607269,0.001,56867.0,56855.0,0.4317345]
[1723756607270,0.404754,56864.0,56855.0,0.4317345]
[1723756607474,0.3608,56864.0,56855.0,0.001]
[1723756607675,0.043956,56861.0,56855.0,0.001]
[1723756607870,0.043956,56861.0,56854.0,0.04422469]
[1723756608069,0.3608,56864.0,56855.0,0.002]
[1723756608381,0.043958,56858.0,56855.0,0.002]
[1723756608575,0.043958,56858.0,56855.0,0.003]
[1723756609076,0.043958,56858.0,56855.0,0.002]
[1723756609276,0.043958,56858.0,56855.0,0.003]
[1723756609578,0.043958,56858.0,56855.0,0.001]
[1723756609775,0.043958,56858.0,56855.0,0.002]
[1723756610773,0.3608,56856.0,56855.0,0.002]
[1723756611879,0.3608,56856.0,56855.0,0.001]
[1723756612075,0.3618,56856.0,56855.0,0.002]
[1723756612376,0.405759,56856.0,56855.0,0.002]
[1723756612597,0.405759,56856.0,56855.0,0.001]
[1723756613675,0.043964,56850.0,56849.0,0.00018587]
[1723756615175,0.044964,56850.0,56849.0,0.00118587]
[1723756616278,0.049964,56850.0,56849.0,0.00118587]
[1723756616916,0.05397462,56850.0,56849.0,0.00118587]
[1723756617280,0.05297462,56850.0,56849.0,0.00018587]
[1723756617480,0.05397462,56850.0,56849.0,0.00018587]
[1723756618992,0.043968,56845.0,56844.0,0.00026369]
[1723756619890,0.04416118,56845.0,56844.0,0.00026369]
[1723756620598,0.23416118,56845.0,56844.0,0.00026369]
[1723756620793,0.04416118,56845.0,56832.0,0.0699345]
[1723756620990,0.043974,56837.0,56831.0,0.3252345]
[1723756621177,0.043975,56836.0,56831.0,0.2553]
[1723756621383,0.043976,56835.0,56831.0,0.3252345]
[1723756621985,0.043976,56835.0,56832.0,0.001]
[1723756622784,0.044976,56835.0,56832.0,0.001]
[1723756623184,0.04907808,56835.0,56832.0,0.001]
[1723756623585,0.404777,56833.0,56832.0,0.001]
[1723756623779,0.043978,56832.0,56831.0,0.2563]
[1723756623979,0.04415668,56832.0,56831.0,0.2563]
[1723756624183,0.04415668,56832.0,56831.0,0.001]
[1723756624399,0.04415668,56832.0,56827.0,0.00017644]
[1723756624400,0.043981,56828.0,56827.0,0.00017644]
[1723756624591,0.404781,56828.0,56827.0,0.00017644]
[1723756625789,0.405781,56828.0,56827.0,0.00017644]
[1723756626790,0.406781,56828.0,56827.0,0.00117644]
[1723756627586,0.41069331,56828.0,56827.0,0.00117644]
[1723756628395,0.002,56828.0,56827.0,0.04515844]
[1723756628583,0.002,56828.0,56827.0,0.00117644]
[1723756628783,0.3628,56828.0,56827.0,0.00117644]
[1723756629290,0.045981,56828.0,56827.0,0.00117644]
[1723756629988,0.002,56828.0,56827.0,0.04515844]
[1723756630193,0.002,56828.0,56827.0,0.29455844]
[1723756631987,0.045981,56828.0,56827.0,0.00117644]
[1723756636090,0.05002674,56828.0,56827.0,0.00117644]
[1723756640803,1.18192774,56828.0,56827.0,0.00117644]
[1723756642597,1.45476574,56828.0,56818.0,0.00394182]
[1723756642794,0.3608,56819.0,56816.0,0.00014504]
[1723756642993,0.043989,56817.0,56805.0,0.0699345]
[1723756643194,0.043996,56809.0,56803.0,0.044]
[1723756643702,0.043996,56809.0,56804.0,0.043999]
[1723756643900,0.00014698,56808.0,56804.0,0.043999]
[1723756644699,0.00014698,56808.0,56805.0,0.043998]
[1723756645694,0.00114698,56808.0,56805.0,0.043998]
[1723756646299,0.00214698,56808.0,56802.0,0.31139147]
[1723756646704,0.3608,56803.0,56798.0,0.0699345]
[1723756646908,0.044002,56801.0,56796.0,0.0040337]
[1723756647112,0.044002,56801.0,56793.0,0.0699345]
[1723756647515,0.044002,56801.0,56795.0,0.044006]
[1723756648215,0.001,56801.0,56792.0,0.2532]
[1723756648509,0.002,56801.0,56792.0,0.2532]
[1723756648915,0.212,56801.0,56792.0,0.2532]
[1723756649111,0.044008,56793.0,56792.0,0.2532]
[1723756649415,0.04401,56791.0,56787.0,0.43484349]
[1723756649806,0.3608,56798.0,56787.0,0.43484349]
[1723756650116,0.3608,56798.0,56782.0,4.78820387]
[1723756650117,0.3608,56791.0,56782.0,0.7521945]
[1723756650317,0.3608,56786.0,56779.0,0.3087345]
[1723756650504,0.3608,56786.0,56779.0,0.2388]
[1723756650505,0.044017,56782.0,56779.0,0.2388]
[1723756650710,0.044017,56781.0,56779.0,0.2388]
[1723756652003,0.044019,56780.0,56778.0,0.00019837]
[1723756652208,0.36096248,56779.0,56778.0,0.00019837]
[1723756654125,0.36196248,56779.0,56778.0,0.00019837]
[1723756654308,0.00116248,56779.0,56778.0,0.92855837]
[1723756654505,0.404808,56793.0,56782.0,0.044016]
[1723756654710,0.404812,56788.0,56783.0,0.2349]
[1723756655007,0.5608,56788.0,56783.0,0.278916]
[1723756655610,0.00013784,56787.0,56783.0,0.278916]
[1723756656208,0.00013784,56787.0,56785.0,0.044014]
[1723756656413,0.00026393,56795.0,56785.0,0.044014]
[1723756656414,0.00026393,56795.0,56786.0,0.248]
[1723756656615,0.00026393,56795.0,56789.0,0.3608]
[1723756656815,0.00026393,56795.0,56793.0,0.044008]
[1723756657716,0.00026393,56795.0,56789.0,0.3608]
[1723756657919,0.00026393,56795.0,56786.0,0.248]
[1723756657920,0.3608,56791.0,56786.0,0.248]
[1723756658112,0.001,56787.0,56786.0,0.248]
[1723756658923,0.001,56787.0,56786.0,1.17628]
[1723756659316,0.001,56787.0,56786.0,0.248]
[1723756660421,0.044008,56794.0,56786.0,0.248]
[1723756660616,0.3608,56790.0,56786.0,0.248]
[1723756660815,0.404808,56794.0,56786.0,0.248]
[1723756661219,0.001,56787.0,56786.0,0.249]
[1723756661616,0.001,56787.0,56786.0,0.001]
[1723756662125,0.044012,56788.0,56786.0,0.001]
[1723756663821,0.001,56787.0,56786.0,0.001]
[1723756664221,0.045013,56787.0,56786.0,0.001]
[1723756664418,0.044017,56782.0,56780.0,0.3608]
[1723756665721,0.045017,56782.0,56780.0,0.3618]
[1723756667028,0.05069919,56782.0,56780.0,0.3618]
[1723756667224,0.00668219,56782.0,56780.0,0.001]
[1723756667626,0.002,56782.0,56780.0,0.001]
[1723756669632,0.3608,56781.0,56780.0,0.001]
[1723756670332,0.002,56782.0,56780.0,0.001]
[1723756670729,0.045017,56781.0,56780.0,0.001]
[1723756672135,0.445017,56781.0,56780.0,0.001]
[1723756672535,0.446017,56781.0,56780.0,0.001]
[1723756672737,0.044019,56779.0,56778.0,0.00019837]
[1723756672939,0.294019,56779.0,56778.0,0.00019837]
[1723756673238,0.044019,56779.0,56778.0,0.00019837]
[1723756673639,0.572379,56779.0,56778.0,0.00019837]
[1723756673935,0.046019,56779.0,56778.0,0.00119837]
[1723756676631,0.002,56779.0,56778.0,0.00119837]
[1723756676835,0.002,56779.0,56778.0,0.57357837]
[1723756678148,0.002,56779.0,56778.0,0.66042224]
[1723756678442,0.044009,56792.0,56787.0,0.044012]
[1723756678830,0.044009,56792.0,56788.0,0.31890252]
[1723756679236,0.044009,56792.0,56790.0,0.07020252]
[1723756680043,0.04862861,56792.0,56790.0,0.07020252]
[1723756680548,0.04862861,56792.0,56789.0,0.07020252]
[1723756680737,0.06975598,56800.0,56791.0,0.3608]
[1723756680738,0.06990395,56800.0,56791.0,0.3608]
[1723756681046,0.06992148,56818.0,56799.0,0.3608]
[1723756681342,0.06992148,56821.0,56815.0,0.3608]
[1723756681571,0.08737994,56828.0,56821.0,0.043986]
[1723756681572,0.06992148,56828.0,56821.0,0.043986]
[1723756681843,0.06992148,56828.0,56820.0,0.3608]
[1723756681844,0.08733933,56843.0,56827.0,0.3608]
[1723756682050,0.08733933,56850.0,56842.0,0.3608]
[1723756682233,0.08733933,56850.0,56839.0,0.07018933]
[1723756682234,0.043953,56865.0,56852.0,0.7216]
[1723756682436,0.043953,56865.0,56846.0,0.07018933]
[1723756682437,0.043953,56865.0,56864.0,0.3608]
[1723756682637,0.3608,56877.0,56864.0,0.3608]
[1723756682935,0.043937,56886.0,56875.0,0.7216]
[1723756683142,0.3608,56891.0,56880.0,0.3608]
[1723756683440,0.043935,56888.0,56886.0,0.3608]
[1723756683643,0.043935,56888.0,56880.0,0.3608]
[1723756683644,0.4,56888.0,56880.0,0.3608]
[1723756683840,0.043938,56883.0,56880.0,0.3608]
[1723756684742,0.014,56888.0,56880.0,0.3608]
[1723756684951,0.014,56886.0,56880.0,0.3608]
[1723756685746,0.014,56883.0,56880.0,0.3608]
[1723756685944,0.014,56883.0,56880.0,0.0169]
[1723756686181,0.5274,56882.0,56875.0,0.00026392]
[1723756686449,0.3608,56878.0,56863.0,0.3608]
[1723756686651,0.043944,56876.0,56863.0,0.3608]
[1723756686847,0.043945,56875.0,56863.0,0.3608]
[1723756687147,0.36552615,56876.0,56863.0,0.3608]
[1723756687337,0.3608,56876.0,56863.0,0.3608]
[1723756687545,0.04420869,56875.0,56864.0,0.00026337]
[1723756687743,0.043947,56873.0,56864.0,0.00026337]
[1723756688140,0.043949,56870.0,56864.0,0.00026337]
[1723756688335,0.00126369,56875.0,56864.0,0.00026337]
[1723756688539,0.00026369,56875.0,56870.0,0.3608]
[1723756688849,0.00026369,56875.0,56864.0,0.00026337]
[1723756689044,0.00026369,56875.0,56870.0,0.3608]
[1723756689544,0.00526369,56875.0,56870.0,0.3608]
[1723756689751,0.00526369,56875.0,56872.0,0.043947]
[1723756690154,0.001,56873.0,56872.0,0.043947]
[1723756690846,0.01126369,56875.0,56874.0,0.043945]
[1723756691441,0.00726369,56875.0,56874.0,0.043945]
[1723756691653,0.00026369,56875.0,56874.0,0.043945]
[1723756691850,0.00926369,56875.0,56874.0,0.043945]
[1723756692036,0.00926369,56875.0,56870.0,0.3608]
[1723756692448,0.00026369,56875.0,56870.0,0.3608]
[1723756692642,0.01226369,56875.0,56870.0,0.3608]
[1723756693046,0.043947,56872.0,56870.0,0.3608]
[1723756693454,0.043949,56870.0,56864.0,0.00026337]
[1723756694243,0.01126369,56875.0,56864.0,0.00026337]
[1723756694244,0.04395,56869.0,56864.0,0.00026337]
[1723756694446,0.00726369,56875.0,56864.0,0.00026337]
[1723756694447,0.004,56872.0,56864.0,0.00026337]
[1723756694949,0.043949,56870.0,56865.0,0.3608]
[1723756695253,0.043949,56869.0,56865.0,0.3608]
[1723756695852,0.043949,56869.0,56812.0,0.33519459]
[1723756695853,0.043961,56854.0,56852.0,0.3608]
[1723756696047,0.443961,56854.0,56852.0,0.3608]
[1723756696352,0.52768,56853.0,56852.0,0.3608]
[1723756696651,0.043964,56850.0,56849.0,0.3608]
[1723756696950,0.043971,56841.0,56840.0,0.3608]
[1723756697152,0.3608,56841.0,56828.0,0.3608]
[1723756697349,0.3608,56845.0,56828.0,0.3608]
[1723756697851,0.00026392,56842.0,56828.0,0.3608]
[1723756698152,0.3608,56839.0,56828.0,0.3608]
[1723756698352,0.043977,56833.0,56828.0,0.3608]
[1723756698944,0.043977,56833.0,56828.0,0.3618]
[1723756701245,0.3608,56839.0,56828.0,0.3608]
[1723756701451,0.043975,56836.0,56828.0,0.3608]
[1723756701954,0.36537459,56839.0,56828.0,0.3608]
[1723756701955,0.3608,56837.0,56828.0,0.3608]
[1723756702354,0.3608,56837.0,56835.0,0.043975]
[1723756702854,0.00026392,56842.0,56841.0,0.043971]
[1723756703051,0.00026392,56842.0,56841.0,0.404771]
[1723756703250,0.00026392,56842.0,56841.0,1.332571]
[1723756704349,0.3608,56855.0,56841.0,1.2886]
[1723756704553,0.3608,56855.0,56849.0,0.404764]
[1723756704954,0.31682701,56855.0,56849.0,0.404764]
[1723756705149,0.32141139,56855.0,56849.0,0.404764]
[1723756705350,0.3608,56850.0,56841.0,0.3608]
[1723756705564,0.043969,56843.0,56833.0,0.3608]
[1723756706456,0.00026392,56844.0,56837.0,0.043974]
[1723756706852,0.00026392,56844.0,56838.0,0.043973]
[1723756707160,0.00026392,56844.0,56833.0,0.3608]
[1723756707161,0.00026392,56844.0,56842.0,0.04397]
[1723756707357,0.00065601,56843.0,56842.0,0.57173]
[1723756707557,0.00165601,56843.0,56842.0,0.04397]
[1723756707759,0.00165601,56843.0,56842.0,0.57173]
[1723756707958,0.00165601,56843.0,56842.0,0.04397]
[1723756708354,0.00065601,56843.0,56842.0,0.04497]
[1723756709862,0.00026392,56844.0,56842.0,0.04497]
[1723756710070,0.001,56843.0,56842.0,0.04497]
[1723756711458,0.001,56843.0,56842.0,0.001]
[1723756712053,0.93876,56843.0,56842.0,0.00073608]
[1723756712257,1.12876,56843.0,56842.0,0.00073608]
[1723756712564,0.94638564,56843.0,56834.0,0.05235546]
[1723756712760,0.3608,56838.0,56834.0,0.05235546]
[1723756713164,0.043975,56836.0,56834.0,0.05235546]
[1723756714361,0.044975,56836.0,56834.0,0.05235546]
[1723756715267,0.049975,56836.0,56835.0,0.05235546]
[1723756716361,0.008,56836.0,56835.0,0.05235546]
[1723756717161,0.008,56836.0,56835.0,0.92784]
[1723756717162,0.009,56836.0,56835.0,0.92784]
[1723756717366,0.00026392,56844.0,56843.0,0.043969]
[1723756717668,0.3568,56850.0,56843.0,0.92776]
[1723756717962,0.3568,56850.0,56849.0,0.09632712]
[1723756718270,0.3568,56850.0,56849.0,0.043965]
[1723756718458,0.3568,56850.0,56849.0,0.571685]
[1723756718459,0.35808,56850.0,56849.0,0.571685]
[1723756718763,0.043965,56849.0,56848.0,0.06981617]
[1723756718963,0.043965,56848.0,56847.0,0.05236988]
[1723756719265,0.043965,56848.0,56844.0,0.00026392]
[1723756719266,0.3568,56850.0,56846.0,0.05236988]
[1723756719465,0.3568,56850.0,56844.0,0.00026392]
[1723756719466,0.3568,56850.0,56845.0,0.05236988]
[1723756719674,0.043965,56848.0,56846.0,0.05236988]
[1723756719967,0.043965,56848.0,56847.0,0.05236988]
[1723756720168,0.045965,56848.0,56847.0,0.05236988]
[1723756720363,0.045965,56848.0,56845.0,0.06981617]
[1723756720565,0.002,56848.0,56847.0,0.3608]
[1723756720761,0.3628,56850.0,56849.0,0.043965]
[1723756721166,0.3568,56850.0,56849.0,0.971685]
[1723756721360,0.3568,56850.0,56849.0,1.10562288]
[1723756722063,0.3618,56850.0,56849.0,1.10562288]
[1723756722568,0.3608,56864.0,56858.0,0.043957]
[1723756722770,0.043952,56866.0,56863.0,0.06995434]
[1723756723162,0.043952,56865.0,56863.0,0.06995434]
[1723756723364,0.00377941,56868.0,56860.0,0.3608]
[1723756723678,0.043954,56863.0,56862.0,0.06996345]
[1723756724064,0.043954,56863.0,56858.0,0.00126392]
[1723756724463,0.043954,56863.0,56860.0,0.001]
[1723756724971,0.043955,56862.0,56861.0,0.06997327]
[1723756725270,0.043955,56861.0,56860.0,0.06999399]
[1723756725470,0.043957,56859.0,56858.0,0.00126392]
[1723756726964,0.043957,56859.0,56858.0,0.00026392]
[1723756727166,0.052957,56859.0,56858.0,0.00026392]
[1723756728071,0.052957,56859.0,56858.0,0.00126392]
[1723756728072,0.064957,56859.0,56858.0,0.00126392]
[1723756731376,0.064957,56859.0,56858.0,0.07125791]
[1723756731573,0.064957,56859.0,56858.0,0.00126392]
[1723756734373,0.064957,56859.0,56858.0,0.05377487]
[1723756735174,0.064957,56859.0,56858.0,0.00126392]
[1723756739077,0.043952,56866.0,56858.0,0.00126392]
[1723756739078,0.08722698,56883.0,56863.0,0.0264]
[1723756739279,0.043936,56887.0,56881.0,0.3608]
[1723756739471,0.41315247,56892.0,56882.0,0.05249751]
[1723756739781,0.3608,56892.0,56884.0,0.05249751]
[1723756740284,0.36458566,56892.0,56884.0,0.05249751]
[1723756740475,0.36458566,56892.0,56885.0,0.05249751]
[1723756740686,0.36458566,56892.0,56886.0,0.09643351]
[1723756740881,0.36458566,56892.0,56887.0,0.05249751]
[1723756741184,0.36458566,56892.0,56886.0,0.043936]
[1723756741185,0.02078566,56892.0,56888.0,0.05249751]
[1723756741575,0.02078566,56892.0,56886.0,0.043936]
[1723756741776,0.02078566,56892.0,56888.0,0.3608]
[1723756742986,0.011,56892.0,56888.0,0.3608]
[1723756743176,0.015,56892.0,56888.0,0.3618]
[1723756743682,0.015,56892.0,56888.0,0.3628]
[1723756745078,0.015,56892.0,56888.0,0.406734]
[1723756747688,0.3608,56911.0,56909.0,0.043918]
[1723756747889,0.3608,56910.0,56900.0,0.3608]
[1723756748380,0.3608,56910.0,56896.0,0.05230503]
[1723756748586,0.3608,56910.0,56897.0,0.05230503]
[1723756748781,0.3608,56910.0,56908.0,0.043919]
[1723756748983,0.00026368,56909.0,56908.0,0.043919]
[1723756749489,0.043925,56900.0,56897.0,0.05256871]
[1723756749680,0.00026368,56909.0,56897.0,0.05256871]
[1723756749681,0.3608,56898.0,56897.0,0.00026368]
[1723756750589,0.3608,56898.0,56897.0,0.00926368]
[1723756751689,0.36448234,56898.0,56897.0,0.00926368]
[1723756751884,0.56448234,56898.0,56897.0,0.00926368]
[1723756752186,0.36448234,56898.0,56897.0,0.00026368]
[1723756752385,0.36448234,56898.0,56897.0,0.00126368]
[1723756752887,0.36648234,56898.0,56897.0,0.00026368]
[1723756753999,0.36748234,56898.0,56897.0,0.00026368]
[1723756755581,0.3618,56898.0,56897.0,0.00026368]
[1723756756094,0.3638,56898.0,56897.0,0.00026368]
[1723756756599,0.3618,56898.0,56897.0,0.00026368]
[1723756756988,0.043926,56899.0,56897.0,0.00026368]
[1723756757188,0.001,56898.0,56897.0,0.00026368]
[1723756758091,0.043926,56899.0,56897.0,0.92754368]
[1723756758092,0.001,56899.0,56897.0,0.92754368]
[1723756758291,0.001,56899.0,56898.0,0.571167]
[1723756758488,0.001,56899.0,56898.0,0.812867]
[1723756758795,0.001,56899.0,56898.0,1.212867]
[1723756759598,0.001,56899.0,56898.0,1.21657531]
[1723756760091,0.3608,56906.0,56899.0,0.043926]
[1723756760292,0.3608,56906.0,56900.0,0.043925]
[1723756760797,0.043925,56900.0,56898.0,0.013]
[1723756761689,0.043925,56900.0,56898.0,0.008]
[1723756762190,0.3608,56901.0,56898.0,0.008]
[1723756762598,0.3608,56901.0,56897.0,0.00026368]
[1723756762599,0.3608,56901.0,56900.0,0.006]
[1723756763182,0.3608,56901.0,56898.0,0.008]
[1723756763493,0.3608,56901.0,56898.0,0.013]
[1723756763992,0.3608,56901.0,56900.0,0.001]
[1723756764184,0.3618,56901.0,56900.0,0.001]
[1723756765601,0.3618,56901.0,56898.0,0.004]
[1723756766002,0.3618,56901.0,56897.0,0.00026368]
[1723756766297,0.3618,56901.0,56900.0,0.001]
[1723756766486,0.001,56901.0,56900.0,0.001]
[1723756766798,0.043926,56899.0,56898.0,0.004]
[1723756766999,0.043926,56899.0,56888.0,0.3608]
[1723756767000,0.52724,56898.0,56888.0,0.3608]
[1723756767300,0.043933,56890.0,56888.0,0.05318503]
[1723756767493,0.043938,56884.0,56883.0,0.05230503]
[1723756767799,0.043943,56878.0,56875.0,0.05230503]
[1723756768095,0.043938,56884.0,56870.0,0.3205]
[1723756768096,0.043943,56877.0,56873.0,0.05230503]
[1723756768296,0.3608,56880.0,56872.0,0.06999668]
[1723756768499,0.043942,56879.0,56876.0,0.05252688]
[1723756769288,0.043942,56879.0,56877.0,0.05252688]
[1723756769891,0.36449489,56880.0,56877.0,0.05252688]
[1723756770087,0.36449489,56880.0,56874.0,0.043945]
[1723756770088,0.002,56879.0,56878.0,0.05252688]
[1723756770413,0.002,56879.0,56877.0,0.05252688]
[1723756770993,0.003,56879.0,56878.0,0.52744]
[1723756771288,0.00026368,56882.0,56878.0,0.52744]
[1723756771601,0.00026368,56882.0,56879.0,0.61488293]
[1723756771800,0.00026368,56882.0,56880.0,0.52744]
[1723756771994,0.00026368,56882.0,56881.0,0.04394]
[1723756773095,0.00126368,56882.0,56881.0,0.04394]
[1723756773294,0.00126368,56882.0,56881.0,0.1139097]
[1723756773500,0.00126368,56882.0,56881.0,0.04394]
[1723756773801,0.00126368,56882.0,56881.0,0.05294]
[1723756774003,0.00126368,56882.0,56881.0,0.12890964]
[1723756774302,0.00126368,56882.0,56881.0,0.12990964]
[1723756774700,0.00126368,56882.0,56881.0,0.05994]
[1723756774903,0.3608,56886.0,56885.0,0.043937]
[1723756775197,0.3608,56893.0,56885.0,1.28816]
[1723756775498,0.3608,56893.0,56892.0,0.043931]
[1723756775703,0.043925,56900.0,56895.0,0.043929]
[1723756776200,0.043925,56900.0,56895.0,0.096393]
[1723756776702,0.043925,56900.0,56896.0,0.052464]
[1723756777203,0.2524,56899.0,56895.0,0.097393]
[1723756777394,0.2524,56899.0,56896.0,0.052464]
[1723756777601,0.05188689,56919.0,56906.0,0.02636]
[1723756777902,0.06992164,56942.0,56918.0,0.08738986]
[1723756778091,0.21,56942.0,56940.0,0.3608]
[1723756778410,0.2,56942.0,56935.0,0.3608]
[1723756778722,0.3608,56947.0,56940.0,0.3608]
[1723756778893,0.00017402,56944.0,56940.0,0.3608]
[1723756779292,0.3608,56941.0,56933.0,0.00026343]
[1723756779488,0.2421,56940.0,56933.0,0.00026343]
[1723756779695,0.6221,56940.0,56933.0,0.00026343]
[1723756780310,0.404698,56935.0,56933.0,0.00026343]
[1723756780502,0.584698,56935.0,56933.0,0.00026343]
[1723756780693,1.271618,56935.0,56933.0,0.00126343]
[1723756781101,1.671618,56935.0,56933.0,0.00126343]